fUSD/lending_fUSD_20260407
["ID","MTS","AMOUNT","RATE_DAILY","PERIOD"]
[420001409,1775602255616,-997.78444,0.00015168,2]
[420001410,1775602255627,-319.733606,0.00015168,2]
[420001411,1775602255640,-997.78444,0.00015168,2]
[420001412,1775602255652,-319.733606,0.00015168,2]
[420001413,1775602255662,-319.733613,0.00015168,2]
[420001414,1775602255672,-997.78444,0.00015168,2]
[420001415,1775602255683,-997.78444,0.00015168,2]
[420001416,1775602255693,-997.784436,0.00015168,2]
[420001417,1775602255703,-151.0,0.00015168,2]
[420001418,1775602255713,-151.0,0.00015168,2]
[420001419,1775602255724,-151.0,0.00015168,2]
[420001420,1775602255735,-248.999624,0.00015168,2]
[420001421,1775602255745,-248.999624,0.00015168,2]
[420001422,1775602255755,-248.999624,0.00015168,2]
[420001423,1775602255765,-248.999624,0.00015168,2]
[420001424,1775602255775,-248.999624,0.00015168,2]
[420001425,1775602255786,-248.999624,0.00015168,2]
[420001426,1775602255795,-151.0,0.00015168,2]
[420001427,1775602255805,-161.809948,0.00015168,2]
[420001428,1775602255817,-248.999624,0.00015168,2]
[420001429,1775602255827,-248.999624,0.00015168,2]
[420001430,1775602255837,-151.0,0.00015168,2]
[420001431,1775602255847,-248.999624,0.00015168,2]
[420001432,1775602255858,-151.0,0.00015168,2]
[420001433,1775602255868,-151.0,0.00015168,2]
[420001434,1775602255878,-248.999624,0.00015168,2]
[420001435,1775602255887,-248.999624,0.00015168,2]
[420001436,1775602255896,-151.0,0.00015168,2]
[420001437,1775602255906,-248.999628,0.00015168,2]
[420001438,1775602255916,-151.0,0.00015168,2]
[420001439,1775602255926,-249.273489,0.00015168,2]
[420001440,1775602255936,-151.0,0.00015168,2]
[420001441,1775602255945,-151.0,0.00015168,2]
[420001442,1775602255955,-151.0,0.00015168,2]
[420001443,1775602255965,-151.0,0.00015168,2]
[420001444,1775602255974,-151.0,0.00015168,2]
[420001445,1775602255984,-151.0,0.00015168,2]
[420001446,1775602255995,-151.0,0.00015168,2]
[420001447,1775602256005,-151.0,0.00015168,2]
[420001448,1775602256015,-151.0,0.00015168,2]
[420001449,1775602256025,-185.481188,0.00015168,2]
[420001450,1775602256035,-1164.823807,0.00015168,2]
[420001451,1775602256045,-1164.823807,0.00015168,2]
[420001452,1775602256055,-291.097718,0.00015168,2]
[420001453,1775602256065,-291.097718,0.00015168,2]
[420001454,1775602256075,-1164.823807,0.00015168,2]
[420001455,1775602256085,-291.097718,0.00015168,2]
[420001456,1775602256095,-151.0,0.00015168,2]
[420001457,1775602256105,-151.0,0.00015168,2]
[420001458,1775602256115,-1164.823807,0.00015168,2]
[420001459,1775602256124,-151.0,0.00015168,2]
[420001460,1775602256134,-1164.823807,0.00015168,2]
[420001461,1775602256145,-291.097718,0.00015168,2]
[420001462,1775602256155,-1164.823807,0.00015168,2]
[420001463,1775602256165,-291.097718,0.00015168,2]
[420001464,1775602256175,-291.097718,0.00015168,2]
[420001465,1775602256185,-151.0,0.00015168,2]
[420001466,1775602256195,-151.0,0.00015168,2]
[420001467,1775602256204,-1164.823807,0.00015168,2]
[420001468,1775602256214,-151.0,0.00015168,2]
[420001469,1775602256223,-1164.823807,0.00015168,2]
[420001470,1775602256233,-291.097718,0.00015168,2]
[420001471,1775602256243,-1164.823807,0.00015168,2]
[420001472,1775602256253,-291.097718,0.00015168,2]
[420001473,1775602256262,-291.097718,0.00015168,2]
[420001474,1775602256272,-1164.823807,0.00015168,2]
[420001475,1775602256282,-1164.823807,0.00015168,2]
[420001476,1775602256292,-291.097718,0.00015168,2]
[420001477,1775602256302,-1164.823811,0.00015168,2]
[420001478,1775602256312,-291.097718,0.00015168,2]
[420001479,1775602256323,-291.097724,0.00015168,2]
[420001480,1775602256333,-151.0,0.00015168,2]
[420001481,1775602256343,-211.198272,0.00015168,2]
[420001482,1775602256353,-473.365674,0.00015168,2]
[420001483,1775602256363,-473.365674,0.00015168,2]
[420001484,1775602256373,-473.365674,0.00015168,2]
[420001485,1775602256382,-184.132287,0.00015168,2]
[420001486,1775602256392,-151.0,0.00015168,2]
[420001487,1775602256407,-473.365676,0.00015168,2]
[420001488,1775602256418,-184.132287,0.00015168,2]
[420001489,1775602256428,-184.132287,0.00015168,2]
[420001490,1775602256438,-985.75,0.00015176,2]
[420001491,1775602256447,-500.0,0.00015177,2]
[420001492,1775602256457,-151.0,0.00015177,2]
[420001493,1775602256466,-210.99779366,0.00015188,2]
[420001494,1775602256476,-2079.0,0.00015193,2]
[420001495,1775602256486,-150.0,0.000152,2]
[420001496,1775602256496,-150.0,0.000152,2]
[420001497,1775602256507,-150.0,0.000152,2]
[420001498,1775602256517,-4113.27250699,0.00015207,2]
[420001499,1775602256528,-151.0,0.00015222,2]
[420001500,1775602256541,-151.0,0.00015222,2]
[420001501,1775602256551,-151.0,0.00015222,2]
[420001502,1775602256562,-691.697776,0.00015222,2]
[420001503,1775602256575,-151.0,0.00015222,2]
[420001504,1775602256585,-151.0,0.00015222,2]
[420001505,1775602256595,-691.697776,0.00015222,2]
[420001506,1775602256606,-151.0,0.00015222,2]
[420001507,1775602256618,-151.0,0.00015222,2]
[420001508,1775602256628,-691.697776,0.00015222,2]
[420001509,1775602256639,-398.255481,0.00015222,2]
[420001510,1775602256649,-151.0,0.00015222,2]
[420001511,1775602256659,-151.0,0.00015222,2]
[420001512,1775602256670,-691.697776,0.00015222,2]
[420001513,1775602256680,-151.0,0.00015222,2]
[420001515,1775602256690,-151.0,0.00015222,2]
[420001516,1775602256700,-398.255481,0.00015222,2]
[420001517,1775602256711,-229.230932,0.00015222,2]
[420001518,1775602256721,-151.0,0.00015222,2]
[420001519,1775602256731,-151.0,0.00015222,2]
[420001520,1775602256740,-151.0,0.00015222,2]
[420001521,1775602256751,-398.255481,0.00015222,2]
[420001522,1775602256760,-151.0,0.00015222,2]
[420001523,1775602256770,-1849.48291,0.00015222,2]
[420001524,1775602256781,-398.255481,0.00015222,2]
[420001525,1775602256792,-151.0,0.00015222,2]
[420001526,1775602256802,-1849.48291,0.00015222,2]
[420001527,1775602256812,-1849.48291,0.00015222,2]
[420001528,1775602256826,-1849.48291,0.00015222,2]
[420001529,1775602256836,-310.659574,0.00015222,2]
[420001530,1775602256846,-310.659574,0.00015222,2]
[420001531,1775602256856,-310.659574,0.00015222,2]
[420001532,1775602256866,-310.659574,0.00015222,2]
[420001533,1775602256875,-279.059325,0.00015222,2]
[420001534,1775602256886,-279.059325,0.00015222,2]
[420001535,1775602256896,-279.059325,0.00015222,2]
[420001536,1775602256906,-279.059325,0.00015222,2]
[420001537,1775602256916,-500.0,0.00015232,2]
[420001538,1775602256926,-151.0,0.00015232,2]
[420001539,1775602256936,-150.0,0.00015247,2]
[420001540,1775602256946,-12779.58027331,0.00015252,2]
[420001541,1775602256956,-2810.0,0.00015261,2]
[420001542,1775602256966,-150.0,0.00015262,2]
[420001543,1775602256976,-500.0,0.00015287,2]
[420001544,1775602256986,-151.0,0.00015287,2]
[420001545,1775602256996,-571.558803,0.00015288,2]
[420001546,1775602257006,-571.558803,0.00015288,2]
[420001547,1775602257016,-151.0,0.00015288,2]
[420001548,1775602257027,-196.109048,0.00015288,2]
[420001549,1775602257037,-571.558803,0.00015288,2]
[420001550,1775602257047,-151.0,0.00015288,2]
[420001551,1775602257059,-571.558803,0.00015288,2]
[420001552,1775602257072,-151.0,0.00015288,2]
[420001553,1775602257081,-151.0,0.00015288,2]
[420001554,1775602257091,-721.866635,0.00015288,2]
[420001555,1775602257101,-721.866635,0.00015288,2]
[420001556,1775602257111,-151.0,0.00015288,2]
[420001557,1775602257122,-151.0,0.00015288,2]
[420001558,1775602257132,-721.866635,0.00015288,2]
[420001559,1775602257143,-151.0,0.00015288,2]
[420001560,1775602257152,-721.866635,0.00015288,2]
[420001561,1775602257162,-151.0,0.00015288,2]
[420001562,1775602257172,-151.0,0.00015288,2]
[420001563,1775602257182,-257.079792,0.00015288,2]
[420001564,1775602257192,-295.756856,0.00015288,2]
[420001565,1775602257202,-640.138705,0.00015288,2]
[420001566,1775602257212,-295.756856,0.00015288,2]
[420001567,1775602257612,-295.756856,0.00015288,2]
[420001568,1775602257623,-295.756856,0.00015288,2]
[420001569,1775602257632,-640.138705,0.00015288,2]
[420001570,1775602257642,-640.138705,0.00015288,2]
[420001571,1775602257651,-640.138705,0.00015288,2]
[420001572,1775602257661,-175.025698,0.00015288,2]
[420001573,1775602257670,-151.0,0.00015288,2]
[420001574,1775602257678,-175.025698,0.00015288,2]
[420001575,1775602257687,-151.0,0.00015288,2]
[420001576,1775602257697,-175.025698,0.00015288,2]
[420001577,1775602257705,-175.025702,0.00015288,2]
[420001578,1775602257714,-151.0,0.00015288,2]
[420001579,1775602257724,-162.845229,0.00015288,2]
[420001580,1775602257733,-1564.370917,0.00015288,2]
[420001581,1775602257742,-289.169587,0.00015288,2]
[420001582,1775602257751,-151.0,0.00015288,2]
[420001583,1775602257761,-162.845229,0.00015288,2]
[420001584,1775602257769,-360.7982,0.00015288,2]
[420001585,1775602257778,-1564.370917,0.00015288,2]
[420001586,1775602257787,-160.342969,0.00015288,2]
[420001587,1775602257796,-289.169587,0.00015288,2]
[420001588,1775602257806,-360.7982,0.00015288,2]
[420001589,1775602257817,-162.845229,0.00015288,2]
[420001590,1775602257825,-151.0,0.00015288,2]
[420001591,1775602257835,-151.0,0.00015288,2]
[420001592,1775602257846,-160.342969,0.00015288,2]
[420001593,1775602257855,-1564.370917,0.00015288,2]
[420001594,1775602257864,-289.169587,0.00015288,2]
[420001595,1775602257875,-360.7982,0.00015288,2]
[420001596,1775602257884,-162.845232,0.00015288,2]
[420001597,1775602257895,-192.49978,0.00015288,2]
[420001598,1775602257903,-160.342969,0.00015288,2]
[420001599,1775602257913,-289.169587,0.00015288,2]
[420001600,1775602257923,-360.798205,0.00015288,2]
[420001601,1775602257934,-160.342977,0.00015288,2]
[420001602,1775602257944,-151.0,0.00015288,2]
[420001603,1775602257955,-151.0,0.00015288,2]
[420001604,1775602257965,-151.514507,0.00015288,2]
[420001605,1775602257975,-1564.370925,0.00015288,2]
[420001606,1775602257985,-151.0,0.00015288,2]
[420001607,1775602257995,-151.0,0.00015288,2]
[420001608,1775602258005,-151.0,0.00015288,2]
[420001609,1775602258017,-151.0,0.00015288,2]
[420001610,1775602258028,-151.514507,0.00015288,2]
[420001611,1775602258039,-400.517147,0.00015288,2]
[420001612,1775602258050,-151.0,0.00015288,2]
[420001613,1775602258061,-151.0,0.00015288,2]
[420001614,1775602258073,-151.514507,0.00015288,2]
[420001615,1775602258083,-400.517147,0.00015288,2]
[420001616,1775602258095,-151.0,0.00015288,2]
[420001617,1775602258106,-151.514506,0.00015288,2]
[420001618,1775602258116,-400.517147,0.00015288,2]
[420001619,1775602258127,-724.067184,0.00015288,2]
[420001620,1775602258138,-606.258349,0.00015288,2]
[420001621,1775602258148,-400.517153,0.00015288,2]
[420001622,1775602258159,-724.067184,0.00015288,2]
[420001623,1775602258170,-606.258349,0.00015288,2]
[420001624,1775602258180,-724.067184,0.00015288,2]
[420001625,1775602258191,-606.258349,0.00015288,2]
[420001626,1775602258202,-724.067179,0.00015288,2]
[420001627,1775602258212,-606.258343,0.00015288,2]
[420001628,1775602258223,-151.0,0.00015288,2]
[420001629,1775602258233,-151.0,0.00015288,2]
[420001630,1775602258244,-475.971532,0.00015288,2]
[420001631,1775602258254,-222.275031,0.00015288,2]
[420001632,1775602258264,-475.971532,0.00015288,2]
[420001633,1775602258274,-222.275031,0.00015288,2]
[420001634,1775602258284,-213.920599,0.00015288,2]
[420001635,1775602258294,-151.0,0.00015288,2]
[420001636,1775602258304,-475.971532,0.00015288,2]
[420001637,1775602258315,-222.275031,0.00015288,2]
[420001638,1775602258327,-222.275035,0.00015288,2]
[420001639,1775602258339,-475.971524,0.00015288,2]
[420001640,1775602258349,-420.794787,0.00015288,2]
[420001641,1775602258359,-420.794787,0.00015288,2]
[420001642,1775602258370,-420.794787,0.00015288,2]
[420001643,1775602258380,-420.794796,0.00015288,2]
[420001644,1775602258391,-543.66552,0.00015288,2]
[420001645,1775602258401,-543.66552,0.00015288,2]
[420001646,1775602258410,-543.66552,0.00015288,2]
[420001647,1775602258420,-543.66551,0.00015288,2]
[420001648,1775602258431,-150.0,0.00015289,2]
[420001649,1775602258442,-11194.80270435,0.00015297,2]
[420001650,1775602258452,-150.0,0.000153,2]
[420001651,1775602258462,-2300.0,0.000153,5]
[420001652,1775602258472,-250.0,0.00015301,2]
[420001653,1775602258482,-232.59328082,0.00015311,2]
[420001654,1775602258491,-284.44014578,0.00015312,2]
[420001655,1775602258502,-312.0,0.00015335,2]
[420001656,1775602258512,-150.0,0.00015341,2]
[420001657,1775602258522,-500.0,0.00015342,2]
[420001658,1775602258533,-151.0,0.00015342,2]
[420001659,1775602258544,-12779.58027331,0.00015345,2]
[420001660,1775602258554,-715.58656234,0.00015345,2]
[420001661,1775602258566,-10168.34753482,0.00015361,2]
[420001662,1775602258578,-700.0,0.00015374,2]
[420001663,1775602258589,-150.0,0.00015385,2]
[420001664,1775602258599,-312.0,0.00015389,2]
[420001665,1775602258610,-500.0,0.00015397,2]
[420001666,1775602258620,-151.0,0.00015397,2]
[420001667,1775602258631,-937.83084642,0.000154,2]
[420001668,1775602258642,-150.0,0.000154,2]
[420001669,1775602258653,-4700.0,0.000154,5]
[420001670,1775602258664,-312.0,0.0001541,2]
[420001671,1775602258675,-350.0,0.00015414,2]
[420001672,1775602258686,-1600.0,0.00015419,2]
[420001673,1775602258696,-312.0,0.00015425,2]
[420001674,1775602258707,-350.0,0.0001543,2]
[420001675,1775602258718,-150.0,0.00015435,2]
[420001676,1775602258730,-151.0,0.00015437,2]
[420001677,1775602258741,-151.0,0.00015437,2]
[420001678,1775602258752,-261.846748,0.00015437,2]
[420001679,1775602258763,-691.697776,0.00015437,2]
[420001680,1775602258774,-151.0,0.00015437,2]
[420001681,1775602258785,-233.106735,0.00015437,2]
[420001682,1775602258795,-691.697776,0.00015437,2]
[420001683,1775602258806,-151.0,0.00015437,2]
[420001684,1775602258819,-151.0,0.00015437,2]
[420001685,1775602258832,-691.697776,0.00015437,2]
[420001686,1775602258843,-398.255481,0.00015437,2]
[420001687,1775602258853,-151.0,0.00015437,2]
[420001688,1775602258865,-151.0,0.00015437,2]
[420001689,1775602258875,-691.697776,0.00015437,2]
[420001690,1775602258886,-151.0,0.00015437,2]
[420001691,1775602258897,-151.0,0.00015437,2]
[420001692,1775602258907,-398.255481,0.00015437,2]
[420001693,1775602258918,-151.0,0.00015437,2]
[420001694,1775602258929,-151.0,0.00015437,2]
[420001695,1775602258939,-398.255481,0.00015437,2]
[420001696,1775602258950,-151.0,0.00015437,2]
[420001697,1775602258961,-1849.48291,0.00015437,2]
[420001698,1775602258971,-398.255481,0.00015437,2]
[420001699,1775602258982,-212.208663,0.00015437,2]
[420001700,1775602258993,-1849.48291,0.00015437,2]
[420001701,1775602259003,-1849.48291,0.00015437,2]
[420001702,1775602259014,-1849.48291,0.00015437,2]
[420001703,1775602259026,-310.659574,0.00015437,2]
[420001704,1775602259037,-310.659574,0.00015437,2]
[420001705,1775602259047,-310.659574,0.00015437,2]
[420001706,1775602259058,-310.659574,0.00015437,2]
[420001707,1775602259070,-279.059325,0.00015437,2]
[420001708,1775602259082,-279.059325,0.00015437,2]
[420001709,1775602259092,-279.059325,0.00015437,2]
[420001710,1775602259104,-279.059325,0.00015437,2]
[420001711,1775602259114,-12779.58027331,0.00015437,2]
[420001712,1775602259125,-151.0,0.00015445,2]
[420001713,1775602259136,-162.156984,0.00015445,2]
[420001714,1775602259146,-204.787907,0.00015445,2]
[420001715,1775602259156,-151.0,0.00015445,2]
[420001716,1775602259168,-151.0,0.00015445,2]
[420001717,1775602259179,-151.0,0.00015445,2]
[420001718,1775602259189,-151.0,0.00015445,2]
[420001719,1775602259199,-151.0,0.00015445,2]
[420001720,1775602259210,-278.80898,0.00015445,2]
[420001721,1775602259220,-278.80898,0.00015445,2]
[420001722,1775602259231,-278.80898,0.00015445,2]
[420001723,1775602259241,-278.80898,0.00015445,2]
[420001724,1775602259251,-204.787907,0.00015445,2]
[420001725,1775602259262,-160.392769,0.00015445,2]
[420001726,1775602259273,-204.787907,0.00015445,2]
[420001727,1775602259284,-204.787907,0.00015445,2]
[420001728,1775602259294,-152.028811,0.00015445,2]
[420001729,1775602259304,-152.438088,0.00015445,2]
[420001730,1775602259314,-151.0,0.00015445,2]
[420001731,1775602259327,-168.779196,0.00015445,2]
[420001732,1775602259338,-161.06401,0.00015445,2]
[420001733,1775602259349,-161.06401,0.00015445,2]
[420001734,1775602259360,-161.06401,0.00015445,2]
[420001735,1775602259372,-161.06401,0.00015445,2]
[420001736,1775602259382,-151.0,0.00015445,2]
[420001737,1775602259393,-257.287771,0.00015445,2]
[420001738,1775602259405,-164.442272,0.00015445,2]
[420001739,1775602259416,-164.442272,0.00015445,2]
[420001740,1775602259427,-164.442272,0.00015445,2]
[420001741,1775602259440,-164.442272,0.00015445,2]
[420001742,1775602259451,-151.0,0.00015445,2]
[420001743,1775602259461,-151.0,0.00015445,2]
[420001744,1775602259472,-151.0,0.00015445,2]
[420001745,1775602259482,-640.006024,0.00015445,2]
[420001746,1775602259492,-640.006024,0.00015445,2]
[420001747,1775602259503,-151.0,0.00015445,2]
[420001748,1775602259513,-151.0,0.00015445,2]
[420001749,1775602259522,-640.006024,0.00015445,2]
[420001750,1775602259532,-151.0,0.00015445,2]
[420001751,1775602259542,-640.006024,0.00015445,2]
[420001752,1775602259553,-151.0,0.00015445,2]
[420001753,1775602259563,-151.0,0.00015445,2]
[420001754,1775602259578,-386.289193,0.00015445,2]
[420001755,1775602259588,-151.0,0.00015445,2]
[420001756,1775602259598,-151.0,0.00015445,2]
[420001757,1775602259608,-717.780777,0.00015445,2]
[420001758,1775602259619,-151.0,0.00015445,2]
[420001759,1775602259629,-386.289193,0.00015445,2]
[420001760,1775602259639,-717.780777,0.00015445,2]
[420001761,1775602259650,-386.289193,0.00015445,2]
[420001762,1775602259661,-717.780777,0.00015445,2]
[420001763,1775602259672,-151.0,0.00015445,2]
[420001764,1775602259682,-717.780777,0.00015445,2]
[420001765,1775602259692,-386.289193,0.00015445,2]
[420001766,1775602259702,-191.501191,0.00015445,2]
[420001767,1775602259712,-151.0,0.00015445,2]
[420001768,1775602259722,-151.0,0.00015445,2]
[420001769,1775602259732,-151.0,0.00015445,2]
[420001770,1775602259743,-232.823868,0.00015445,2]
[420001771,1775602259754,-174.777034,0.00015445,2]
[420001772,1775602259764,-250.702475,0.00015445,2]
[420001773,1775602259775,-151.0,0.00015445,2]
[420001774,1775602259785,-250.702475,0.00015445,2]
[420001775,1775602259796,-151.0,0.00015445,2]
[420001776,1775602259807,-151.0,0.00015445,2]
[420001777,1775602259818,-174.777034,0.00015445,2]
[420001778,1775602259828,-151.0,0.00015445,2]
[420001779,1775602259839,-250.702475,0.00015445,2]
[420001780,1775602259850,-571.558803,0.00015445,2]
[420001781,1775602259861,-174.777034,0.00015445,2]
[420001782,1775602259871,-151.0,0.00015445,2]
[420001783,1775602259881,-250.702475,0.00015445,2]
[420001784,1775602259891,-151.0,0.00015445,2]
[420001785,1775602259900,-571.558803,0.00015445,2]
[420001786,1775602259910,-256.831814,0.00015445,2]
[420001787,1775602259920,-174.777034,0.00015445,2]
[420001788,1775602259930,-571.558803,0.00015445,2]
[420001789,1775602259941,-151.0,0.00015445,2]
[420001790,1775602259951,-571.558803,0.00015445,2]
[420001791,1775602259962,-151.0,0.00015445,2]
[420001792,1775602259972,-151.0,0.00015445,2]
[420001793,1775602259982,-721.866635,0.00015445,2]
[420001794,1775602259992,-721.866635,0.00015445,2]
[420001795,1775602260002,-151.0,0.00015445,2]
[420001796,1775602260013,-151.0,0.00015445,2]
[420001797,1775602260023,-721.866635,0.00015445,2]
[420001798,1775602260033,-228.866216,0.00015445,2]
[420001799,1775602260043,-721.866635,0.00015445,2]
[420001800,1775602260053,-151.0,0.00015445,2]
[420001801,1775602260063,-151.0,0.00015445,2]
[420001802,1775602260074,-295.756856,0.00015445,2]
[420001803,1775602260084,-295.756856,0.00015445,2]
[420001804,1775602260094,-295.756856,0.00015445,2]
[420001805,1775602260104,-295.756856,0.00015445,2]
[420001806,1775602260114,-151.0,0.00015445,2]
[420001807,1775602260263,-151.0,0.00015445,2]
[420001808,1775602260274,-691.697776,0.00015445,2]
[420001809,1775602260286,-249.25612,0.00015445,2]
[420001810,1775602260297,-640.138705,0.00015445,2]
[420001811,1775602260308,-691.697776,0.00015445,2]
[420001812,1775602260524,-640.138705,0.00015445,2]
[420001813,1775602260535,-151.0,0.00015445,2]
[420001814,1775602260546,-691.697776,0.00015445,2]
[420001815,1775602260556,-640.138705,0.00015445,2]
[420001816,1775602260569,-151.0,0.00015445,2]
[420001817,1775602260579,-398.255481,0.00015445,2]
[420001818,1775602260589,-151.0,0.00015445,2]
[420001819,1775602260599,-691.697772,0.00015445,2]
[420001820,1775602260609,-151.0,0.00015445,2]
[420001821,1775602260619,-151.0,0.00015445,2]
[420001822,1775602260629,-640.138705,0.00015445,2]
[420001823,1775602260640,-151.0,0.00015445,2]
[420001824,1775602260650,-398.255481,0.00015445,2]
[420001825,1775602260660,-151.0,0.00015445,2]
[420001826,1775602260670,-151.0,0.00015445,2]
[420001827,1775602260680,-398.255481,0.00015445,2]
[420001828,1775602260690,-1849.48291,0.00015445,2]
[420001829,1775602260700,-398.255479,0.00015445,2]
[420001830,1775602260709,-1849.48291,0.00015445,2]
[420001831,1775602260719,-1849.48291,0.00015445,2]
[420001832,1775602260729,-1849.482901,0.00015445,2]
[420001833,1775602260739,-310.659574,0.00015445,2]
[420001834,1775602260750,-310.659574,0.00015445,2]
[420001835,1775602260760,-310.659574,0.00015445,2]
[420001836,1775602260771,-310.659578,0.00015445,2]
[420001837,1775602260781,-279.059325,0.00015445,2]
[420001838,1775602260791,-279.059325,0.00015445,2]
[420001839,1775602260801,-279.059325,0.00015445,2]
[420001840,1775602260811,-279.059323,0.00015445,2]
[420001841,1775602260822,-365.87797006,0.00015447,2]
[420001842,1775602260831,-985.75,0.0001545,2]
[420001843,1775602260840,-500.0,0.00015452,2]
[420001844,1775602260851,-151.0,0.00015452,2]
[420001845,1775602260861,-150.0,0.00015467,2]
[420001846,1775602260871,-150.0,0.00015467,2]
[420001847,1775602260880,-337.73351084,0.00015467,2]
[420001848,1775602260890,-820.0,0.00015468,2]
[420001849,1775602260900,-4451.2,0.00015471,2]
[420001850,1775602260910,-150.0,0.000155,2]
[420001851,1775602260920,-7100.0,0.000155,5]
[420001852,1775602260930,-242.55072701,0.00015506,2]
[420001853,1775602260939,-312.0,0.00015507,2]
[420001854,1775602260949,-500.0,0.00015507,2]
[420001855,1775602260958,-151.0,0.00015507,2]
[420001856,1775602260968,-150.0,0.00015508,2]
[420001857,1775602260977,-293.77507876,0.00015514,2]
[420001858,1775602260988,-150.0,0.00015529,2]
[420001859,1775602260997,-12779.58027331,0.0001553,2]
[420001860,1775602261007,-1000.0,0.00015539,2]
[420001861,1775602261017,-693.9372,0.0001554,2]
[420001862,1775602261027,-571.558803,0.0001554,2]
[420001863,1775602261036,-151.0,0.0001554,2]
[420001864,1775602261046,-571.558803,0.0001554,2]
[420001865,1775602261056,-571.558803,0.0001554,2]
[420001866,1775602261067,-151.0,0.0001554,2]
[420001867,1775602261077,-571.558807,0.0001554,2]
[420001868,1775602261087,-151.0,0.0001554,2]
[420001869,1775602261096,-151.0,0.0001554,2]
[420001870,1775602261106,-721.866635,0.0001554,2]
[420001871,1775602261116,-721.866635,0.0001554,2]
[420001872,1775602261125,-151.0,0.0001554,2]
[420001873,1775602261134,-151.0,0.0001554,2]
[420001874,1775602261144,-721.866635,0.0001554,2]
[420001875,1775602261154,-721.866629,0.0001554,2]
[420001876,1775602261165,-151.0,0.0001554,2]
[420001877,1775602261175,-151.0,0.0001554,2]
[420001878,1775602261186,-295.756856,0.0001554,2]
[420001879,1775602261196,-295.756856,0.0001554,2]
[420001880,1775602261205,-295.756856,0.0001554,2]
[420001881,1775602261215,-295.756864,0.0001554,2]
[420001882,1775602261226,-640.138705,0.0001554,2]
[420001883,1775602261235,-640.138705,0.0001554,2]
[420001884,1775602261245,-640.138705,0.0001554,2]
[420001885,1775602261255,-640.138697,0.0001554,2]
[420001886,1775602261266,-771.0,0.00015549,2]
[420001887,1775602261276,-246.40432,0.00015552,2]
[420001888,1775602261285,-151.0,0.00015552,2]
[420001889,1775602261294,-151.0,0.00015552,2]
[420001890,1775602261305,-151.0,0.00015552,2]
[420001891,1775602261315,-151.0,0.00015552,2]
[420001892,1775602261326,-151.0,0.00015552,2]
[420001893,1775602261335,-151.0,0.00015552,2]
[420001894,1775602261345,-151.0,0.00015552,2]
[420001895,1775602261355,-151.0,0.00015552,2]
[420001896,1775602261365,-294.932068,0.00015552,2]
[420001897,1775602261375,-151.0,0.00015552,2]
[420001898,1775602261384,-151.0,0.00015552,2]
[420001899,1775602261394,-294.932068,0.00015552,2]
[420001900,1775602261403,-294.932068,0.00015552,2]
[420001901,1775602261413,-151.0,0.00015552,2]
[420001902,1775602261422,-294.932068,0.00015552,2]
[420001903,1775602261431,-151.0,0.00015552,2]
[420001904,1775602261440,-151.0,0.00015552,2]
[420001905,1775602261450,-151.0,0.00015552,2]
[420001906,1775602261460,-166.91155,0.00015552,2]
[420001907,1775602261469,-166.91155,0.00015552,2]
[420001908,1775602261479,-166.91155,0.00015552,2]
[420001909,1775602261487,-166.91155,0.00015552,2]